bitfinex-derivatives/quotes_ETHF0:USTF0_20250309
["timestamp","ask_amount","ask_price","bid_price","bid_amount"]
[1741562657936,0.99034,2019.7,2019.5,0.99041]
[1741562658132,3.2078,2020.0,2019.4,5.2136]
[1741562658332,2.47556,2019.9,2019.3,6.1702]
[1741562658533,3.2078,2019.7,2019.2,3.2078]
[1741562658739,0.99034,2019.7,2019.5,0.9904]
[1741562658937,2.948,2019.8,2019.2,3.2078]
[1741562659134,0.99051,2019.4,2019.2,3.2078]
[1741562659433,0.99051,2019.4,2019.2,4.19834]
[1741562659633,0.99052,2019.3,2019.2,3.2078]
[1741562659841,0.99061,2019.2,2019.0,14.6293]
[1741562660037,0.99061,2019.2,2019.0,15.61995]
[1741562660341,7.9294,2019.6,2019.0,14.6293]
[1741562660536,0.99046,2019.5,2019.0,14.6293]
[1741562660728,0.99047,2019.4,2019.2,0.99055]
[1741562660930,0.99061,2019.1,2018.9,3.2078]
[1741562661128,2.948,2019.6,2018.9,5.68447]
[1741562661328,2.948,2019.6,2019.3,0.99049]
[1741562661732,0.99052,2019.4,2019.2,3.2078]
[1741562661939,2.948,2019.6,2019.2,3.2078]
[1741562662429,2.948,2019.6,2019.3,6.2289]
[1741562663033,2.948,2019.6,2019.4,0.99043]
[1741562663238,2.948,2019.6,2019.3,6.2289]
[1741562663443,2.948,2019.6,2019.4,0.99044]
[1741562663634,2.948,2019.6,2019.5,0.99042]
[1741562663839,7.9294,2020.0,2019.5,3.2078]
[1741562664039,5.97161,2020.0,2019.7,0.9903]
[1741562664237,4.9814,2020.0,2019.7,0.9903]
[1741562664442,5.97159,2020.0,2019.7,0.9903]
[1741562664643,2.9924151,2020.2,2019.6,4.8577]
[1741562664943,6.2002151,2020.2,2019.6,5.84806]
[1741562665144,11.1621151,2020.2,2019.6,4.8577]
[1741562665346,0.99026,2019.9,2019.6,5.84804]
[1741562665738,0.99026,2019.9,2019.7,0.99031]
[1741562665937,11.1621151,2020.2,2019.6,4.8577]
[1741562666241,0.99029,2019.8,2019.6,0.99037]
[1741562666551,13.6373551,2020.2,2019.5,4.19819]
[1741562666740,0.99029,2019.8,2019.5,4.19819]
[1741562667247,3.2078,2019.8,2019.3,6.2289]
[1741562667447,3.2078,2019.8,2019.3,7.2194]
[1741562667643,3.2078,2019.8,2019.3,6.2289]
[1741562667842,3.203,2020.1,2019.5,3.2078]
[1741562668047,0.99024,2019.9,2019.5,3.2078]
[1741562668342,3.2078,2020.1,2019.5,3.2078]
[1741562668542,3.2078,2019.8,2018.9,8.3241]
[1741562668746,6.3821,2019.7,2019.4,0.99046]
[1741562669042,2.948,2020.0,2019.5,3.2078]
[1741562669244,0.99025,2019.9,2019.6,0.99035]
[1741562669447,0.99027,2019.9,2019.6,0.99035]
[1741562669746,0.9902,2020.0,2019.5,3.2078]
[1741562670042,0.0074151,2020.2,2019.9,3.2078]
[1741562670246,0.0074151,2020.2,2020.1,0.99012]
[1741562670441,0.0074151,2020.2,2020.0,7.34915]
[1741562670646,0.0074151,2020.2,2020.1,6.10642]
[1741562672144,4.19761,2020.8,2020.6,0.98987]
[1741562672346,3.2078,2020.8,2020.3,4.1978]
[1741562672539,5.68231,2020.8,2020.3,3.2078]
[1741562672740,0.98994,2020.5,2020.3,4.19781]
[1741562673043,0.98994,2020.5,2020.3,4.19782]
[1741562673440,0.98998,2020.4,2020.3,3.2078]
[1741562673737,0.98998,2020.4,2020.2,0.0074151]
[1741562673738,0.99003,2020.3,2020.2,0.0074151]
[1741562673943,0.0074151,2020.6,2020.2,0.0074151]
[1741562674147,0.0074151,2020.6,2020.4,0.98996]
[1741562674343,0.0074151,2020.6,2020.2,0.0074151]
[1741562674545,0.0074151,2020.6,2020.5,0.98993]
[1741562674735,3.2078,2021.1,2020.5,3.2078]
[1741562674942,0.98954,2021.3,2021.1,0.98961]
[1741562675238,3.2078,2021.5,2020.8,3.2078]
[1741562675239,0.98959,2021.2,2020.8,3.2078]
[1741562675435,0.98959,2021.2,2021.0,0.98967]
[1741562675639,3.2078,2021.5,2020.8,3.2078]
[1741562675835,3.2078,2021.2,2020.8,3.2078]
[1741562676044,0.98972,2021.0,2020.7,0.98981]
[1741562676243,3.2078,2021.2,2020.6,11.1628]
[1741562676440,0.98983,2020.7,2020.6,11.1628]
[1741562676645,3.2078,2020.9,2020.3,3.199]
[1741562676835,0.98993,2020.6,2020.3,3.199]
[1741562677149,0.98998,2020.4,2020.3,3.199]
[1741562677442,11.9159,2020.9,2020.2,14.3780151]
[1741562677642,0.99003,2020.3,2020.2,0.0074151]
[1741562677850,9.4415,2020.9,2020.2,0.0074151]
[1741562678049,0.98999,2020.4,2020.2,0.9974851]
[1741562678245,0.98989,2020.6,2020.4,0.98995]
[1741562678548,0.98981,2020.8,2020.2,3.2152151]
[1741562678739,3.2078,2020.9,2020.3,4.9936]
[1741562678943,3.2078,2020.9,2020.3,7.46858]
[1741562679243,6.2337,2021.3,2021.0,0.98968]
[1741562679445,2.47397,2021.2,2020.5,3.2078]
[1741562679644,0.98988,2020.6,2020.5,3.2078]
[1741562679851,3.2078,2020.8,2020.3,5.98361]
[1741562680042,3.2078,2020.8,2020.3,4.9936]
[1741562680242,0.98998,2020.4,2020.3,4.9936]
[1741562680442,0.98997,2020.5,2020.3,4.9936]
[1741562680647,3.2078,2020.8,2020.3,4.9936]
[1741562680848,3.2078,2020.8,2020.4,0.98993]
[1741562681049,3.2078,2020.8,2020.3,4.9936]
[1741562681248,0.98998,2020.4,2020.3,4.9936]
[1741562682248,0.98998,2020.4,2020.2,3.2152151]
[1741562682453,0.99003,2020.3,2020.2,3.2152151]
[1741562682748,0.99003,2020.3,2020.2,0.0074151]
[1741562683151,0.98999,2020.4,2020.2,0.0074151]
[1741562683353,4.936,2020.5,2020.2,3.2152151]
[1741562683552,0.99003,2020.3,2020.2,3.2152151]
[1741562683753,4.936,2020.5,2020.2,3.2152151]
[1741562684054,0.99003,2020.3,2020.2,0.0074151]
[1741562684551,8.1438,2020.5,2020.2,0.0074151]
[1741562684757,0.99003,2020.3,2020.2,0.0074151]
[1741562685052,8.1438,2020.5,2020.2,0.0074151]
[1741562685251,0.99003,2020.3,2020.2,0.0074151]
[1741562688150,8.1438,2020.5,2020.2,0.0074151]
[1741562688355,6.4121,2020.7,2020.2,3.2152151]
[1741562688551,0.99,2020.4,2020.2,4.2052751]
[1741562688751,6.4121,2020.7,2020.2,3.2152151]
[1741562689059,2.948,2020.8,2020.7,0.98983]
[1741562689257,4.8678,2020.9,2020.5,3.2078]
[1741562689458,0.98978,2020.8,2020.6,0.98985]
[1741562689855,0.98978,2020.8,2020.6,0.98984]
[1741562690055,4.8678,2020.9,2020.5,3.2078]
[1741562690259,4.8678,2020.9,2020.8,0.98978]
[1741562690461,0.98971,2021.0,2020.8,0.98978]
[1741562690966,0.98968,2021.0,2020.7,0.98979]
[1741562691261,0.98974,2020.9,2020.7,0.98982]
[1741562691457,0.98974,2020.9,2020.7,0.98983]
[1741562692055,0.98974,2020.9,2020.5,3.2078]
[1741562692256,0.98974,2020.9,2020.7,0.98982]
[1741562692754,3.2078,2021.2,2020.5,3.2078]
[1741562692957,2.47409,2021.1,2020.5,3.2078]
[1741562693155,3.2078,2020.9,2020.3,11.5539]
[1741562693355,0.98985,2020.7,2020.5,0.98991]
[1741562693561,3.2078,2020.9,2020.4,0.98994]
[1741562693864,0.98988,2020.6,2020.4,0.98994]
[1741562694065,0.98986,2020.7,2020.3,11.5539]
[1741562694266,0.9899,2020.6,2020.4,0.98996]
[1741562694463,0.98998,2020.4,2020.3,11.5539]
[1741562694670,0.98998,2020.4,2020.2,4.2052651]
[1741562694967,3.2078,2020.6,2020.3,0.99001]
[1741562694968,0.98996,2020.5,2020.3,0.99001]
[1741562695263,3.2078,2020.6,2020.2,3.2152151]
[1741562695467,0.98992,2020.6,2020.2,3.2152151]
[1741562695659,3.2078,2020.7,2020.3,0.99003]
[1741562695864,6.3069,2020.8,2020.6,0.98986]
[1741562696065,2.948,2021.0,2020.5,5.68261]
[1741562696266,5.203,2021.2,2020.7,0.98979]
[1741562696566,0.98975,2020.9,2020.7,0.98981]
[1741562696763,5.203,2021.2,2020.8,0.98975]
[1741562696960,6.19262,2021.2,2021.0,0.98966]
[1741562697161,5.203,2021.2,2020.8,3.2078]
[1741562697357,0.98973,2020.9,2020.8,3.2078]
[1741562697557,0.98977,2020.9,2020.6,6.4736]
[1741562697761,3.2078,2021.0,2020.6,7.46343]
[1741562697970,0.98983,2020.7,2020.6,6.4736]
[1741562698171,0.98982,2020.8,2020.6,7.46347]
[1741562698469,0.98988,2020.7,2020.5,0.98993]
[1741562698668,5.68205,2021.0,2020.4,8.1581]
[1741562698864,0.98989,2020.6,2020.4,9.14803]
[1741562699061,0.98993,2020.5,2020.4,3.2078]
[1741562699260,0.98998,2020.4,2020.3,6.1641]
[1741562699558,0.99003,2020.3,2020.2,0.0074151]
[1741562699758,0.99001,2020.4,2020.2,0.9974551]
[1741562699957,0.99003,2020.3,2020.2,0.0074151]
[1741562700368,20.76002,2020.7,2020.2,0.0074151]
[1741562700565,0.99003,2020.3,2020.2,0.0074151]
[1741562701163,0.99019,2020.0,2019.8,3.2078]
[1741562701359,11.6425,2020.2,2019.5,9.3719]
[1741562701564,0.99014,2020.1,2019.9,4.19799]
[1741562701764,0.99004,2020.3,2020.1,0.99009]
[1741562701970,0.99008,2020.2,2020.0,0.99015]
[1741562702172,14.4638,2020.5,2019.9,5.68332]
[1741562702466,0.0074151,2020.3,2020.2,0.99006]
[1741562702966,3.188,2020.9,2020.2,4.19786]
[1741562703164,3.2078,2021.1,2020.6,3.2078]
[1741562703365,5.68193,2021.1,2020.5,0.9899]
[1741562703668,12.5611,2021.2,2020.9,0.98971]
[1741562703866,0.9897,2021.0,2020.8,3.2078]
[1741562704074,0.98976,2020.9,2020.6,12.62105]
[1741562704286,3.2152151,2021.1,2020.6,11.6312]
[1741562704567,0.98993,2020.5,2020.4,3.2078]
[1741562704769,3.2078,2020.5,2020.1,3.2078]
[1741562704972,3.2078,2020.5,2019.9,0.0074151]
[1741562705169,6.1054,2020.4,2019.9,0.0074151]
[1741562705370,6.1054,2020.4,2020.0,0.99014]
[1741562705573,0.99011,2020.2,2019.9,0.9976251]
[1741562706065,0.99017,2020.0,2019.9,0.0074151]
[1741562706769,5.1303,2020.1,2020.0,0.99017]
[1741562706965,3.2078,2020.2,2019.9,0.0074151]
[1741562707171,0.99017,2020.0,2019.9,0.0074151]
[1741562707365,0.99016,2020.1,2019.9,0.0074151]
[1741562707565,3.2078,2020.2,2019.9,0.0074151]
[1741562707773,3.2078,2020.2,2019.9,0.9976151]
[1741562707962,0.99012,2020.1,2019.9,0.9976151]
[1741562708168,0.99012,2020.1,2019.9,0.9976251]
[1741562708369,5.1303,2020.3,2019.9,0.9976251]
[1741562708768,0.99008,2020.2,2019.9,0.9976251]
[1741562709074,0.99015,2020.1,2019.9,0.0074151]
[1741562709577,0.99015,2020.1,2019.9,0.9976351]
[1741562709775,5.1303,2020.3,2019.9,0.0074151]
[1741562710072,0.99005,2020.3,2020.1,4.19791]
[1741562710576,7.09542,2020.4,2020.1,4.19791]
[1741562710870,7.09542,2020.4,2019.9,0.0074151]
[1741562710871,6.1054,2020.4,2019.9,0.0074151]
[1741562711071,0.99017,2020.0,2019.9,0.0074151]
[1741562712876,5.68306,2020.2,2019.4,3.2078]
[1741562713074,0.99029,2019.8,2019.5,0.9904]
[1741562713376,0.99004,2020.3,2020.1,0.99012]
[1741562713576,0.99004,2020.3,2019.7,3.2078]
[1741562713577,6.1054,2020.4,2020.2,0.99006]
[1741562713772,4.9868,2020.6,2020.3,0.99003]
[1741562713976,0.0074151,2020.7,2020.3,3.2078]
[1741562714273,3.2078,2021.3,2020.6,3.2078]
[1741562714472,0.9897,2021.0,2020.7,0.98981]
[1741562714669,5.68171,2021.3,2020.6,4.19765]
[1741562714976,0.98981,2020.8,2020.6,3.2078]
[1741562715384,2.948,2021.2,2020.8,0.98977]
[1741562715576,0.0074151,2020.9,2020.6,3.2078]
[1741562715882,0.9898,2020.8,2020.6,4.19766]
[1741562716279,0.0074151,2020.9,2020.8,0.98978]
[1741562716475,9.2081,2021.4,2020.6,3.2078]
[1741562716476,3.2078,2021.4,2020.6,7.2078]
[1741562716670,4.19731,2021.4,2021.1,4.19742]
[1741562716977,0.98955,2021.3,2021.0,0.98965]
[1741562717187,0.9896,2021.2,2020.9,0.9897]
[1741562717384,11.3338,2021.5,2020.8,3.2078]
[1741562717578,0.98962,2021.2,2020.8,3.2078]
[1741562717880,0.98956,2021.3,2021.0,0.98965]
[1741562718078,0.9969351,2021.4,2021.1,0.98962]
[1741562718481,0.0074151,2021.4,2021.2,0.98954]
[1741562718681,0.0074151,2021.4,2021.3,0.98954]
[1741562718978,17.7617,2022.2,2021.3,2.47385]
[1741562719181,17.7617,2022.2,2021.7,0.98932]
[1741562719375,0.98921,2022.0,2021.7,0.98932]
[1741562719575,17.7617,2022.2,2021.4,8.3911]
[1741562719778,5.6808,2022.0,2021.4,3.2078]
[1741562719979,0.98944,2021.5,2021.4,3.2078]
[1741562720182,2.948,2021.7,2021.4,3.2078]
[1741562720478,0.98944,2021.5,2021.4,3.2078]
[1741562720674,7.8059,2021.7,2021.4,3.2078]
[1741562720979,0.98944,2021.5,2021.4,3.2078]
[1741562721181,0.98954,2021.3,2021.2,0.0074151]
[1741562721378,0.98976,2020.9,2020.7,5.1833]
[1741562721577,0.98976,2020.9,2020.5,6.4674]
[1741562721578,3.2078,2021.0,2020.5,6.4674]
[1741562721778,6.6458,2020.9,2020.6,0.98986]
[1741562721983,6.6458,2020.9,2020.3,22.21]
[1741562722287,6.6458,2020.9,2020.6,0.98985]
[1741562722586,6.6458,2020.9,2020.5,0.0074151]
[1741562722587,0.9898,2020.8,2020.5,0.0074151]
[1741562722784,7.63556,2020.9,2020.6,0.98985]
[1741562723084,6.6458,2020.9,2020.5,0.0074151]
[1741562723281,0.0074151,2021.0,2020.8,0.98978]
[1741562723474,0.0074151,2021.0,2020.6,7.39895]
[1741562723679,0.98978,2020.8,2020.6,6.4091]
[1741562723888,0.0074151,2021.0,2020.5,3.2152151]
[1741562724184,3.2078,2020.9,2020.5,3.2152151]
[1741562724386,0.0074151,2021.0,2020.5,3.2152151]
[1741562724581,0.0074151,2021.0,2020.9,4.19753]
[1741562724985,4.9041,2021.6,2021.2,0.98958]
[1741562725188,0.98946,2021.5,2021.2,4.19738]
[1741562725384,9.6723,2022.0,2021.2,3.2078]
[1741562725585,9.6723,2022.0,2021.3,11.2197]
[1741562725786,6.4645,2022.0,2021.5,3.2078]
[1741562726088,0.98949,2021.4,2021.3,6.4091]
[1741562726592,0.98946,2021.5,2021.3,6.4091]
[1741562726888,0.98946,2021.5,2021.1,3.1864151]
[1741562726889,0.98959,2021.2,2021.1,0.0074151]
[1741562727388,4.19739,2021.2,2021.1,0.0074151]
[1741562728183,6.2663,2021.4,2021.1,0.0074151]
[1741562728388,6.1558,2021.7,2021.2,3.2078]
[1741562728584,0.98928,2021.9,2021.6,0.98937]
[1741562729091,0.98929,2021.8,2021.6,0.98937]
[1741562729393,0.0074151,2022.0,2021.5,3.2078]
[1741562729689,0.9966351,2022.0,2021.5,3.2078]
[1741562729894,0.0074151,2022.0,2021.6,5.0355]
[1741562730088,0.0074151,2022.0,2021.6,6.02486]
[1741562730294,0.98927,2021.9,2021.6,6.02486]
[1741562730684,0.0074151,2022.0,2021.6,5.0355]
[1741562730983,0.0074151,2022.0,2021.8,3.2078]
[1741562731289,0.98926,2021.9,2021.6,6.02486]
[1741562731687,0.0074151,2022.0,2021.6,5.0355]
[1741562732382,0.0074151,2022.0,2021.9,0.98924]
[1741562732979,0.9966451,2022.0,2021.8,3.2078]
[1741562733182,0.0074151,2022.0,2021.9,0.98924]
[1741562733385,0.9966051,2022.0,2021.8,4.19707]
[1741562733591,0.0074151,2022.0,2021.8,3.2078]
[1741562733986,0.98924,2021.9,2021.8,3.2078]
[1741562734388,0.98932,2021.8,2021.6,6.02488]
[1741562734584,0.98932,2021.8,2021.6,5.0355]
[1741562734888,0.98944,2021.5,2021.4,3.2078]
[1741562735087,0.9966251,2022.0,2021.4,5.68145]
[1741562735287,0.98927,2021.9,2021.7,0.98932]
[1741562736395,0.9966451,2022.0,2021.8,0.98929]
[1741562736694,0.98928,2021.9,2021.7,0.98933]
[1741562736995,0.98924,2021.9,2021.7,0.9893]
[1741562737287,0.98924,2021.9,2021.4,3.703]
[1741562737481,0.98934,2021.7,2021.5,0.98941]
[1741562737686,0.98933,2021.8,2021.4,3.2078]
[1741562737891,0.0074151,2022.0,2021.6,0.98936]
[1741562738095,0.0074151,2022.0,2021.4,3.2078]
[1741562738290,0.98937,2021.7,2021.4,3.2078]
[1741562738486,0.9894,2021.6,2021.4,4.19727]
[1741562738682,0.98941,2021.6,2021.4,3.2078]
[1741562738889,0.98944,2021.5,2021.4,3.2078]
[1741562739082,7.26024,2021.5,2021.4,3.2078]
[1741562739489,0.98959,2021.2,2021.1,8.0212151]
[1741562739785,6.2708,2021.5,2021.1,8.0212151]
[1741562739786,9.4786,2021.5,2021.1,0.0074151]
[1741562739985,2.948,2021.7,2021.1,0.0074151]
[1741562740192,0.9894,2021.6,2021.5,0.98943]
[1741562740494,0.98945,2021.5,2021.3,3.2078]
[1741562740683,2.948,2021.7,2021.3,4.1973]
[1741562740884,0.98941,2021.6,2021.5,0.98942]
[1741562741196,2.948,2021.7,2021.6,0.98939]
[1741562741387,2.948,2021.7,2021.3,9.3169]
[1741562741590,0.98944,2021.5,2021.3,10.30642]
[1741562741789,6.1558,2021.7,2021.3,9.3169]
[1741562742185,0.98944,2021.5,2021.3,9.3169]
[1741562742398,0.98949,2021.4,2021.3,6.1091]
[1741562742599,0.98949,2021.4,2021.2,5.3177]
[1741562742600,8.62918,2021.7,2021.2,5.3177]
[1741562742799,0.98954,2021.3,2021.2,5.3177]
[1741562743192,0.98959,2021.2,2021.1,0.0074151]
[1741562743392,3.2078,2021.4,2021.1,0.9970451]
[1741562743699,0.98958,2021.3,2021.1,0.9970451]
[1741562743993,0.98954,2021.3,2021.1,0.9970451]
[1741562744195,0.98954,2021.3,2021.1,0.9970351]
[1741562745003,3.2078,2021.4,2021.1,0.9970351]
[1741562745199,3.2078,2021.4,2021.1,0.0074151]
[1741562745392,0.9894,2021.6,2021.4,0.98947]
[1741562745594,14.5065,2021.9,2021.2,2.47397]
[1741562745794,14.5065,2021.9,2021.5,0.98942]
[1741562745998,0.98938,2021.7,2021.5,0.98942]
[1741562746193,14.5065,2021.9,2021.3,0.9895]
[1741562746399,14.5065,2021.9,2021.4,0.98946]
[1741562746593,14.5065,2021.9,2021.1,3.2152151]
[1741562746795,0.98946,2021.5,2021.3,0.98953]
[1741562747001,0.98936,2021.7,2021.5,0.98943]
[1741562747207,0.98936,2021.7,2021.1,5.6892551]
[1741562747399,0.98936,2021.7,2021.4,0.98945]
[1741562747605,14.5065,2021.9,2021.2,0.98954]
[1741562747606,0.98947,2021.5,2021.2,0.98954]
[1741562747798,3.2078,2021.7,2021.1,3.2152151]
[1741562748102,0.98948,2021.5,2021.2,0.98954]
[1741562748401,0.98959,2021.2,2021.1,0.0074151]
[1741562748590,0.98953,2021.4,2021.1,0.9970251]
[1741562748791,17.7143,2021.9,2021.1,3.2152151]
[1741562748998,0.9895,2021.4,2021.1,3.2152151]
[1741562749302,2.47324,2021.8,2021.1,3.2152151]
[1741562749303,0.98958,2021.3,2021.1,0.9970451]
[1741562749700,3.2078,2021.6,2021.1,0.0074151]
[1741562749897,0.98949,2021.4,2021.1,0.0074151]
[1741562750103,3.2078,2021.6,2021.1,0.0074151]
[1741562750303,0.98946,2021.5,2021.2,0.98954]
[1741562750900,3.2078,2021.6,2021.1,0.0074151]
[1741562751408,0.98944,2021.5,2021.3,0.98951]
[1741562751604,3.2078,2021.6,2021.5,0.98944]
[1741562751805,14.7663,2021.9,2021.6,0.98935]
[1741562752012,0.9893,2021.8,2021.5,0.98941]
[1741562752305,14.7663,2021.9,2021.3,0.98949]
[1741562752503,17.23946,2021.9,2021.3,0.98949]
[1741562752701,15.75557,2021.9,2021.7,0.98933]
[1741562752903,14.7663,2021.9,2021.4,17.26699]
[1741562753104,8.4955,2021.9,2021.8,0.98929]
[1741562753299,9.48474,2021.9,2021.7,0.98931]
[1741562753502,8.4955,2021.9,2021.4,14.7933]
[1741562753911,0.98935,2021.7,2021.5,0.98943]
[1741562754210,8.4955,2021.9,2021.8,0.98929]
[1741562754409,0.0074151,2022.0,2021.9,0.98924]
[1741562755920,0.0074151,2022.0,2021.9,1.48444]
[1741562756126,0.0074151,2022.0,2021.7,0.98931]
[1741562756321,0.0074151,2022.0,2021.9,3.2078]
[1741562756527,0.0074151,2022.0,2021.9,0.98924]
[1741562756927,0.0074151,2022.0,2021.9,7.18794]
[1741562757129,0.0074151,2022.0,2021.9,12.44864]
[1741562757427,0.98924,2021.9,2021.8,3.2078]
[1741562758422,7.53244,2021.9,2021.8,3.2078]
[1741562759123,6.5432,2021.9,2021.8,3.2078]
[1741562759422,7.53244,2021.9,2021.8,3.2078]
[1741562760217,6.5432,2021.9,2021.8,4.19709]
[1741562760431,0.9966451,2022.0,2021.9,0.98924]
[1741562760629,0.0074151,2022.0,2021.9,0.98924]
[1741562761126,0.98928,2021.9,2021.7,0.98933]
[1741562761326,0.9966251,2022.0,2021.8,0.98927]
[1741562761519,0.0074151,2022.0,2021.9,0.98924]
[1741562762533,0.0074151,2022.0,2021.9,12.05404]
[1741562762732,0.98898,2022.5,2022.2,0.98907]
[1741562762932,0.98902,2022.4,2022.1,4.1969]
[1741562763129,8.1655,2022.6,2022.1,3.2078]
[1741562763933,0.98906,2022.3,2022.1,3.2152151]
[1741562764122,8.1729151,2022.6,2022.1,3.2152151]
[1741562764320,0.9891,2022.2,2022.1,0.0074151]
[1741562764727,3.2078,2022.3,2022.1,0.0074151]
[1741562765033,0.9891,2022.2,2022.1,0.0074151]
[1741562766331,7.3207,2022.2,2022.1,0.0074151]
[1741562767629,13.442,2022.2,2022.1,0.0074151]
[1741562768333,12.4529,2022.2,2022.1,0.0074151]
[1741562768529,4.19687,2022.3,2022.1,0.9965351]
[1741562768735,0.9891,2022.2,2022.1,0.9965351]
[1741562769040,0.9891,2022.2,2022.1,0.0074151]
[1741562769432,3.9371,2022.2,2022.1,0.0074151]
[1741562769634,3.9371,2022.2,2021.5,3.2078]
[1741562769635,0.98939,2021.6,2021.5,3.2078]
[1741562769834,5.933,2022.0,2021.6,0.98939]
[1741562770133,0.98925,2021.9,2021.8,0.98927]
[1741562770329,0.98936,2021.7,2021.5,4.1972]
[1741562770729,0.98939,2021.6,2021.5,3.2078]
[1741562771733,0.98937,2021.7,2021.5,4.19721]
[1741562771935,3.2078,2021.8,2021.5,3.2078]
[1741562772238,0.98939,2021.6,2021.5,3.2078]
[1741562772636,0.98944,2021.5,2021.4,0.0074151]
[1741562772934,4.19724,2021.5,2021.4,0.0074151]
[1741562773137,3.2078,2021.5,2021.4,0.9969051]
[1741562773534,4.19724,2021.5,2021.4,0.0074151]
[1741562774037,2.47316,2021.9,2021.4,0.0074151]
[1741562774038,0.98942,2021.6,2021.4,0.0074151]
[1741562774239,0.98944,2021.5,2021.4,0.0074151]
[1741562775837,0.98942,2021.6,2021.4,0.9968951]
[1741562776040,0.98944,2021.5,2021.4,0.0074151]
[1741562776241,6.1558,2021.9,2021.4,0.0074151]
[1741562776438,0.98935,2021.7,2021.5,0.98942]
[1741562776837,6.1558,2021.9,2021.4,3.2152151]
[1741562777543,0.98944,2021.5,2021.4,3.2152151]
[1741562778246,0.98936,2021.7,2021.5,0.98942]
[1741562778445,0.98936,2021.7,2021.4,4.2046651]
[1741562778644,6.1558,2021.9,2021.4,3.2152151]
[1741562778847,2.948,2021.9,2021.4,5.6888951]
[1741562779046,4.19691,2022.2,2022.0,0.98918]
[1741562779250,3.2078,2022.2,2021.7,5.68109]
[1741562779544,10.9211,2022.5,2022.1,0.98912]
[1741562779545,0.98904,2022.4,2022.1,0.98912]
[1741562779743,0.0074151,2022.6,2022.5,0.98895]
[1741562780043,7.10995,2023.2,2022.4,11.2874]
[1741562780243,20.99300273,2023.5,2023.1,3.2078]
[1741562780442,3.2078,2023.3,2022.5,6.44907408]
[1741562780637,3.2078,2023.0,2022.7,0.98883]
[1741562780839,3.2078,2023.0,2022.5,0.98892]
[1741562781041,0.98878,2022.9,2022.6,0.0074151]
[1741562781235,0.0074151,2023.1,2022.6,0.9962851]
[1741562781541,0.98879,2022.9,2022.7,3.2078]
[1741562781746,0.98878,2022.9,2022.7,3.2078]
[1741562782046,0.98885,2022.7,2022.6,0.0074151]
[1741562782846,4.9936,2022.7,2022.1,4.19692]
[1741562783049,11.1897,2022.7,2022.1,15.55392]
[1741562783240,11.1897,2022.7,2022.1,14.5648]
[1741562783436,11.1897,2022.7,2022.2,0.98906]
[1741562783646,0.98899,2022.5,2022.1,15.55392]
[1741562783846,11.1897,2022.7,2022.1,14.5648]
[1741562784140,2.948,2022.9,2022.4,3.2078]
[1741562784444,0.98882,2022.8,2022.5,0.9889]
[1741562784650,0.0074151,2023.1,2022.8,0.9888]
[1741562784840,0.98871,2023.0,2022.8,0.9888]
[1741562785041,0.98875,2022.9,2022.8,5.2324]
[1741562785249,0.0074151,2023.1,2022.8,6.22119]
[1741562785448,0.98875,2022.9,2022.8,5.2324]
[1741562785951,3.2078,2023.0,2022.6,6.116]
[1741562786242,3.2078,2023.0,2022.1,3.2152151]
[1741562786243,0.9891,2022.2,2022.1,3.2152151]
[1741562786443,0.9891,2022.2,2022.1,0.0074151]
[1741562787543,0.98939,2021.6,2021.5,22.198]
[1741562788240,0.98944,2021.5,2021.4,5.1028]
[1741562788439,11.1942,2021.8,2021.1,3.2078]
[1741562788644,0.98946,2021.5,2021.3,0.98952]
[1741562789343,0.98954,2021.3,2021.2,0.0074151]
[1741562789648,0.98945,2021.5,2021.2,0.0074151]
[1741562789848,0.98945,2021.5,2021.2,0.9969751]
[1741562790050,0.0074151,2021.7,2021.2,0.0074151]
[1741562790250,0.98954,2021.3,2021.2,0.0074151]
[1741562790551,0.98952,2021.4,2021.2,0.0074151]
[1741562791143,3.2078,2021.6,2021.2,0.0074151]
[1741562791345,0.98945,2021.5,2021.2,0.9969751]
[1741562791545,0.98951,2021.4,2021.2,0.0074151]
[1741562791846,0.98954,2021.3,2021.2,0.0074151]
[1741562792252,0.98945,2021.5,2021.2,0.0074151]
[1741562792546,0.98949,2021.4,2021.2,0.9969951]
[1741562792852,3.2078,2021.6,2021.2,0.0074151]
[1741562793050,0.98946,2021.5,2021.2,0.9969751]
[1741562793248,0.0074151,2021.7,2021.2,0.0074151]
[1741562793453,0.98954,2021.3,2021.2,0.0074151]
[1741562793950,3.2078,2021.6,2021.2,0.0074151]
[1741562794142,0.98954,2021.3,2021.2,0.0074151]
[1741562795250,0.98952,2021.4,2021.2,0.9969851]
[1741562795452,0.0074151,2021.7,2021.2,0.0074151]
[1741562795647,0.0074151,2021.7,2021.6,0.98939]
[1741562796944,3.2078,2022.5,2021.6,4.98939]
[1741562797149,3.2078,2022.5,2021.8,3.2078]
[1741562797449,0.98902,2022.4,2022.1,0.98913]
[1741562797753,3.2078,2022.5,2022.1,0.98913]
[1741562797949,3.2078,2022.5,2021.8,3.2078]
[1741562798152,3.2152151,2022.5,2022.0,0.98918]
[1741562798358,0.98909,2022.3,2022.0,0.98915]
[1741562798548,3.2152151,2022.5,2021.8,3.2078]
[1741562798860,0.98903,2022.4,2022.1,0.98912]
[1741562799556,0.98904,2022.4,2022.1,0.98912]
[1741562799857,0.98904,2022.4,2022.1,0.9891]
[1741562800150,0.98904,2022.4,2022.2,0.98909]
[1741562800758,3.2152151,2022.5,2021.8,3.2078]
[1741562800960,0.98918,2022.1,2021.9,0.98923]
[1741562801255,3.2152151,2022.5,2021.8,3.2078]
[1741562801458,0.98901,2022.4,2022.2,0.98907]
[1741562802152,0.989,2022.4,2022.1,4.19691]
[1741562802360,0.989,2022.4,2022.2,0.98908]
[1741562802659,0.98908,2022.3,2022.1,4.19692]